bitfinex-derivatives/quotes_ETHF0:USTF0_20210110
["timestamp","ask_amount","ask_price","bid_price","bid_amount"]
[1610263767138,21.98574934,1323.1,1323.0,1.595]
[1610263767641,25.99533934,1323.1,1323.0,1.595]
[1610263770244,25.99533934,1323.1,1322.9,4.53966617]
[1610263770444,25.99533934,1323.1,1322.8,54.16545528]
[1610263771647,4.00959,1322.9,1322.8,54.16545528]
[1610263772349,4.00959,1322.9,1322.8,49.6269]
[1610263779352,4.00959,1322.9,1322.3,6.10456995]
[1610263779753,4.00959,1322.6,1322.3,6.10456995]
[1610263781255,4.00959,1322.6,1322.5,4.54230834]
[1610263782259,4.00959,1322.6,1322.4,4.54624533]
[1610263783260,4.00959,1322.6,1322.2,4.54939884]
[1610263783460,5.75309,1322.6,1322.2,4.54939884]
[1610263783661,4.00959,1322.3,1322.2,4.54939884]
[1610263784061,4.00959,1322.3,1321.9,48.64930576]
[1610263785066,4.00959,1322.3,1321.9,44.0941]
[1610263785464,6.39819,1322.3,1321.9,44.0941]
[1610263785666,4.00959,1322.0,1321.9,44.0941]
[1610263788771,4.00959,1322.0,1321.8,14.55900451]
[1610263790269,2.3886,1322.3,1321.8,14.55900451]
[1610263790470,57.8456,1322.4,1321.8,14.55900451]
[1610263791870,61.85519,1322.4,1321.8,14.55900451]
[1610263792071,61.85519,1322.4,1322.3,4.55117886]
[1610263793772,61.85519,1322.4,1322.2,6.64273448]
[1610263795273,61.85519,1322.4,1322.2,4.55253448]
[1610263797375,61.85519,1322.4,1322.1,4.55589294]
[1610263797775,4.00959,1322.2,1322.1,4.55589294]
[1610263804483,4.00959,1322.2,1322.0,4.54655256]
[1610263806590,78.46254934,1323.1,1322.0,4.54655256]
[1610263806789,78.46254934,1323.1,1322.0,7.95155256]
[1610263807191,76.32604934,1323.1,1322.0,7.95155256]
[1610263807595,21.98574934,1323.1,1322.0,7.95155256]
[1610263807792,4.00959,1322.5,1322.4,4.53254037]
[1610263810694,4.00959,1322.5,1322.2,4.521679]
[1610263813597,4.00959,1322.5,1322.0,3.405]
[1610263813598,4.00959,1322.5,1322.1,4.53737134]
[1610263813798,4.00959,1322.2,1322.1,4.53737134]
[1610263815502,4.00959,1322.2,1321.9,4.54326643]
[1610263815900,4.00959,1322.0,1321.9,4.54326643]
[1610263816404,4.00959,1322.0,1321.8,10.0]
[1610263828718,12.25119,1322.0,1321.8,10.0]
[1610263830319,42.25119,1322.0,1321.8,10.0]
[1610263830919,42.25119,1322.0,1321.9,4.09810537]
[1610263831320,42.25119,1322.0,1321.8,14.09953962]
[1610263831722,42.25119,1322.0,1321.8,10.0]
[1610263834524,12.25119,1322.0,1321.8,10.0]
[1610263835726,4.00959,1322.0,1321.8,14.09985446]
[1610263836427,4.00959,1322.0,1321.9,4.09697145]
[1610263836927,4.00959,1322.0,1321.8,10.0]
[1610263866753,34.00959,1322.0,1321.8,10.0]
[1610263867853,4.00959,1322.0,1321.8,10.0]
[1610263872359,32.2311,1322.2,1321.8,10.0]
[1610263872662,4.00959,1321.9,1321.8,10.0]
[1610263874164,34.00959,1321.9,1321.8,10.0]
[1610263875366,4.00959,1321.9,1321.8,10.0]
[1610263882671,4.00250252,1321.9,1321.8,10.0]
[1610263887882,2.2311,1322.2,1321.8,10.0]
[1610263888084,1.5436,1322.5,1321.8,10.0]
[1610263888282,47.2347,1322.6,1321.8,10.0]
[1610263888683,47.2347,1322.6,1322.5,4.09224321]
[1610263890686,51.24429,1322.6,1322.5,4.09224321]
[1610263891688,51.24429,1322.6,1321.8,10.0]
[1610263892086,4.00959,1322.6,1322.3,59.7531]
[1610263892487,4.00959,1322.6,1322.5,4.09145948]
[1610263893987,34.00959,1322.6,1322.4,4.09501369]
[1610263895087,4.00959,1322.6,1322.4,4.09501369]
[1610263897093,34.00959,1322.6,1322.4,4.09501369]
[1610263898294,34.00959,1322.6,1322.3,63.85048826]
[1610263898894,34.00959,1322.4,1322.3,63.85048826]
[1610263900494,4.00959,1322.4,1322.3,63.85048826]
[1610263901396,4.00959,1322.4,1322.3,4.09738826]
[1610263905301,4.00959,1322.4,1322.0,46.8106]
[1610263905602,4.00959,1322.4,1322.3,4.09536427]
[1610263907604,4.00959,1322.4,1322.0,46.8106]
[1610263908804,4.00959,1322.1,1322.0,46.8106]
[1610263916213,34.00959,1322.1,1322.0,46.8106]
[1610263916415,36.16379,1322.1,1322.0,46.8106]
[1610263916714,36.16379,1322.1,1322.0,50.90985441]
[1610263916916,36.16379,1322.1,1322.0,46.8106]
[1610263918616,49.8267,1322.0,1321.9,4.10298564]
[1610263918815,79.8267,1322.0,1321.9,4.10298564]
[1610263919717,79.8267,1322.0,1321.8,14.10447425]
[1610263920918,4.00959,1321.9,1321.8,14.10447425]
[1610263921117,34.00959,1321.9,1321.8,14.10447425]
[1610263923622,4.00959,1321.9,1321.8,14.10447425]
[1610263923819,34.00959,1321.9,1321.8,14.10447425]
[1610263924722,4.00959,1321.9,1321.8,10.0]
[1610263925923,34.00959,1321.9,1321.8,10.0]
[1610263926824,4.00959,1321.9,1321.8,10.0]
[1610263930527,34.00959,1321.9,1321.8,10.0]
[1610263931730,4.00959,1321.9,1321.8,10.0]
[1610263935533,4.00959,1321.9,1321.8,20.0]
[1610263937638,34.00959,1321.9,1321.8,20.0]
[1610263938637,4.00959,1321.9,1321.8,20.0]
[1610263941243,34.00959,1321.9,1321.8,20.0]
[1610263942947,4.00959,1321.9,1321.8,20.0]
[1610263944047,34.00959,1321.9,1321.8,20.0]
[1610263945851,4.00959,1321.9,1321.8,20.0]
[1610263946051,34.00959,1321.9,1321.8,20.0]
[1610263948051,4.00959,1321.9,1321.8,20.0]
[1610263949554,34.00959,1321.9,1321.8,20.0]
[1610263950755,4.00959,1321.9,1321.8,10.0]
[1610263951455,34.00959,1321.9,1321.8,10.0]
[1610263951856,34.00959,1321.9,1321.8,14.10981011]
[1610263952256,34.00959,1321.9,1321.8,10.0]
[1610263981286,30.0,1321.9,1321.8,10.0]
[1610263981685,34.00959,1321.9,1321.8,10.0]
[1610263983286,4.00959,1321.9,1321.8,10.0]
[1610263985488,4.00959,1321.9,1321.8,14.12871172]
[1610263985890,4.00959,1321.9,1321.8,10.0]
[1610263986490,2.1542,1322.1,1321.8,10.0]
[1610263986693,1.5302,1322.4,1321.8,10.0]
[1610263986891,30.0,1322.7,1321.8,10.0]
[1610263987094,88.8587,1322.8,1322.2,4.1213068]
[1610263987792,5.97349,1322.3,1322.2,4.1213068]
[1610263987992,5.97349,1322.3,1321.8,10.0]
[1610263989894,4.00959,1322.0,1321.8,10.0]
[1610263990293,6.26519,1322.0,1321.8,10.0]
[1610263994902,36.26519,1322.0,1321.8,10.0]
[1610263995302,36.26519,1322.0,1321.9,4.12751947]
[1610263996002,36.26519,1322.0,1321.8,14.13085713]
[1610263996201,6.26519,1322.0,1321.8,14.13085713]
[1610263997002,36.26519,1322.0,1321.8,14.13085713]
[1610263998303,6.26519,1322.0,1321.8,14.13085713]
[1610263998505,6.26519,1322.0,1321.8,10.0]
[1610263998805,30.0,1321.9,1321.8,10.0]
[1610263999505,30.0,1321.9,1321.8,14.13423167]
[1610264000109,30.0,1321.9,1321.8,10.0]
[1610264004114,6.26519,1322.0,1321.8,10.0]
[1610264004313,6.26519,1322.0,1321.8,14.13812149]
[1610264007221,6.26519,1322.0,1321.9,4.13947732]
[1610264008317,36.26519,1322.0,1321.9,4.13947732]
[1610264009019,36.26519,1322.0,1321.8,14.13989391]
[1610264011220,36.26519,1322.0,1321.8,10.0]
[1610264014821,36.26519,1322.0,1321.8,1.7856]
[1610264021329,6.26519,1322.0,1321.8,1.7856]
[1610264021830,6.26519,1322.0,1321.8,5.92850963]
[1610264023129,6.26519,1322.0,1321.9,4.14108956]
[1610264026737,6.26519,1322.0,1321.8,14.68483801]
[1610264027038,6.26519,1322.0,1321.9,4.13901313]
[1610264029536,6.26519,1322.0,1321.8,10.5453]
[1610264031438,6.26519,1322.0,1321.9,4.13779252]
[1610264032339,6.26519,1322.0,1321.8,10.5453]
[1610264032939,6.26519,1322.0,1321.9,4.13804885]
[1610264033339,36.26519,1322.0,1321.9,4.13804885]
[1610264033639,36.26519,1322.0,1321.8,14.685298]
[1610264034743,36.26519,1322.0,1321.8,10.5453]
[1610264035040,6.26519,1322.0,1321.8,10.5453]
[1610264035239,36.26519,1322.0,1321.8,10.5453]
[1610264037441,36.26519,1322.0,1321.1,4.15747306]
[1610264037641,94.32459,1322.0,1321.1,4.15747306]
[1610264037841,94.32459,1322.0,1320.9,4.16089309]
[1610264038040,4.00959,1321.0,1320.9,4.16089309]
[1610264038241,35.60249,1321.0,1320.8,4.16233256]
[1610264039240,30.0,1320.9,1320.8,4.16233256]
[1610264039742,30.0,1320.9,1320.7,4.16339653]
[1610264040043,4.00959,1320.8,1320.7,4.16339653]
[1610264040442,34.00959,1320.8,1320.6,4.16599162]
[1610264040845,34.00959,1320.8,1320.7,4.16476287]
[1610264041944,4.00959,1320.8,1320.7,4.16476287]
[1610264042544,4.00959,1320.8,1320.0,8.03099614]
[1610264042747,4.00959,1320.8,1320.0,4.62599614]
[1610264043347,4.00959,1320.8,1320.4,4.61678388]
[1610264043745,30.0,1321.9,1320.4,4.61678388]
[1610264043945,30.0,1321.9,1320.4,8.02178388]
[1610264044145,6.22789,1320.9,1320.4,8.02178388]
[1610264044346,2.2183,1320.9,1320.4,4.61678388]
[1610264046046,2.3354,1321.3,1320.4,4.61678388]
[1610264046646,2.3354,1321.3,1320.8,4.59788507]
[1610264047647,2.2556,1322.0,1320.8,4.59788507]
[1610264047850,1.6456,1322.8,1320.8,4.59788507]
[1610264048050,4.00959,1321.9,1320.8,4.59788507]
[1610264048251,6.28969,1321.9,1320.8,4.59788507]
[1610264049552,6.28969,1321.9,1321.8,4.1327093]
[1610264049753,6.28969,1321.9,1321.7,4.13418038]
[1610264052156,36.28969,1321.9,1321.6,4.13841125]
[1610264053160,6.28969,1321.9,1320.8,4.59823472]
[1610264053560,6.28969,1321.9,1321.6,4.13904889]
[1610264053762,6.28969,1321.9,1321.7,4.13934364]
[1610264054760,6.28969,1321.9,1321.6,4.14068412]
[1610264055764,6.28969,1321.9,1321.5,4.14340721]
[1610264056063,4.00959,1321.6,1321.5,4.14340721]
[1610264056263,6.23579,1321.6,1321.5,4.14340721]
[1610264057063,6.23579,1321.6,1320.8,3.405]
[1610264057263,6.23579,1321.6,1320.7,4.60713344]
[1610264057462,2.2262,1321.6,1320.7,4.60713344]
[1610264060166,4.00959,1321.3,1320.8,4.60508741]
[1610264060564,5.54849,1321.3,1320.8,4.60508741]
[1610264061065,5.54849,1321.3,1320.7,4.61008975]
[1610264061967,5.54849,1321.3,1320.6,4.61175712]
[1610264062167,4.00959,1320.9,1320.6,4.61175712]
[1610264062367,6.47199,1320.9,1320.6,4.61175712]
[1610264068873,6.47199,1320.9,1320.5,4.61375172]
[1610264071876,6.47199,1320.9,1320.4,4.6182203]
[1610264076181,4.00959,1320.7,1320.4,4.6182203]
[1610264076381,2.4624,1320.9,1320.4,4.6182203]
[1610264076583,1.5389,1321.3,1320.4,4.6182203]
[1610264076982,2.2262,1321.6,1320.4,4.6182203]
[1610264077183,30.0,1321.8,1320.4,4.6182203]
[1610264077383,2.2801,1321.9,1320.4,4.6182203]
[1610264077585,30.0,1322.2,1321.4,4.15195652]
[1610264078185,4.00959,1321.5,1321.4,4.15195652]
[1610264078385,4.00959,1321.5,1320.4,4.6182203]
[1610264078585,6.35689,1321.5,1320.9,4.60802499]
[1610264080188,4.00959,1321.2,1320.9,4.60802499]
[1610264082090,2.3473,1321.5,1320.9,4.60802499]
[1610264082293,4.00959,1321.4,1320.9,4.60802499]
[1610264084395,4.00959,1321.2,1320.9,4.60802499]
[1610264084795,5.89099,1321.2,1320.9,4.60802499]
[1610264084993,5.89099,1321.2,1320.6,4.60994058]
[1610264086298,4.00959,1320.7,1320.6,4.60994058]
[1610264087201,1.8814,1321.2,1320.6,4.60994058]
[1610264088397,4.00959,1321.1,1320.7,4.60893215]
[1610264088998,1.8814,1321.2,1320.7,4.60893215]
[1610264089801,2.3473,1321.5,1320.7,4.60893215]
[1610264090303,4.00959,1321.3,1320.7,4.60893215]
[1610264090702,2.2072,1321.4,1320.7,4.60893215]
[1610264091704,2.2072,1321.4,1321.1,4.59833842]
[1610264092302,6.21679,1321.4,1321.1,4.59833842]
[1610264093304,6.21679,1321.4,1320.9,4.60224808]
[1610264093905,6.21679,1321.4,1320.8,4.60551452]
[1610264094307,4.00959,1321.0,1320.8,4.60551452]
[1610264097009,4.00959,1321.0,1320.7,4.60558965]
[1610264100711,1.7824,1321.1,1320.7,4.60558965]
[1610264100912,2.2072,1321.4,1320.7,4.60558965]
[1610264101311,2.4311,1321.7,1320.7,4.60558965]
[1610264101711,30.0,1322.9,1320.7,4.60558965]
[1610264101912,30.0,1322.9,1321.6,4.14456839]
[1610264102311,4.00959,1321.7,1321.6,4.14456839]
[1610264102510,4.00959,1321.7,1320.7,8.01058965]
[1610264102711,6.18789,1321.7,1320.7,8.01058965]
[1610264102912,6.18789,1321.7,1321.6,4.14542283]
[1610264106720,36.18789,1321.7,1321.6,4.14542283]
[1610264107325,36.18789,1321.7,1321.5,4.14826485]
[1610264107523,36.18789,1321.7,1320.7,8.01418317]
[1610264107723,36.18789,1321.7,1321.5,4.14862532]
[1610264108723,36.18789,1321.7,1321.4,4.15109081]
[1610264108923,36.18789,1321.7,1321.3,4.15288781]
[1610264109523,36.18789,1321.7,1321.2,4.15475149]
[1610264110523,34.00959,1321.3,1321.2,4.15475149]
[1610264110725,35.64989,1321.3,1321.2,4.15475149]
[1610264111326,35.64989,1321.3,1320.4,4.61639054]
[1610264111528,5.64989,1321.3,1320.4,4.61639054]
[1610264111728,5.64989,1321.3,1321.2,4.15540957]
[1610264111928,5.64989,1321.3,1320.4,4.61639054]
[1610264112431,4.00959,1320.8,1320.4,4.61639054]
[1610264112630,6.44439,1320.8,1320.4,4.61639054]
[1610264113029,6.44439,1320.8,1320.5,4.61710787]
[1610264116132,6.44439,1320.8,1320.6,4.61844902]
[1610264119336,6.44439,1320.8,1320.5,4.61823455]
[1610264124345,36.44439,1320.8,1320.5,4.61823455]
[1610264124546,4.00959,1320.6,1320.3,4.6234926]
[1610264124746,34.00959,1320.6,1320.3,4.6234926]
[1610264125447,34.00959,1320.6,1320.2,4.62904172]
[1610264126147,34.00959,1320.6,1320.0,4.63266123]
[1610264126548,4.00959,1320.1,1320.0,4.63266123]
[1610264126750,5.87059,1320.1,1320.0,4.63266123]
[1610264127354,35.87059,1320.1,1320.0,4.63266123]
[1610264128356,35.87059,1320.1,1319.7,4.63945435]
[1610264128755,35.87059,1320.1,1319.5,4.64413201]
[1610264130457,4.00959,1319.6,1319.5,4.64413201]
[1610264130959,5.97259,1319.6,1319.5,4.64413201]
[1610264131157,1.963,1319.6,1319.5,4.64413201]
[1610264135963,4.00959,1319.8,1319.5,4.64413201]
[1610264136562,4.00959,1319.6,1319.5,4.64413201]
[1610264138469,2.4382,1319.8,1319.5,4.64413201]
[1610264138670,2.4382,1319.8,1318.8,5.56928404]
[1610264138965,2.4382,1319.8,1319.7,4.64007722]
[1610264141971,5.87059,1320.1,1319.7,4.64007722]
[1610264143171,1.861,1320.1,1319.7,4.64007722]
[1610264143371,88.4448,1320.8,1319.7,4.64007722]
[1610264143572,58.4448,1320.8,1319.7,4.64007722]
[1610264143873,58.4448,1320.8,1320.7,4.17243619]
[1610264144572,62.45439,1320.8,1320.7,4.17243619]
[1610264145171,62.45439,1320.8,1319.7,4.64007722]
[1610264145874,6.44439,1320.8,1320.7,4.16949275]
[1610264146877,6.44439,1320.8,1319.9,4.63276972]
[1610264148581,4.00959,1320.6,1319.9,4.63276972]
[1610264148777,2.4348,1320.8,1319.9,4.63276972]
[1610264149178,51.0985,1321.1,1320.1,4.62703968]
[1610264149477,51.0985,1321.1,1320.9,4.16460784]
[1610264150477,4.00959,1321.0,1320.9,4.16460784]
[1610264150677,5.85459,1321.0,1320.9,4.16460784]
[1610264154079,5.85459,1321.0,1320.1,4.62703968]
[1610264154482,1.845,1321.0,1320.9,4.16485952]
[1610264155083,1.845,1321.0,1320.1,4.62703968]
[1610264155482,1.845,1321.0,1320.9,4.16773879]
[1610264155982,30.0,1321.9,1320.9,4.16773879]
[1610264156184,30.0,1321.9,1320.1,4.62703968]
[1610264156586,1.8701,1321.3,1321.0,4.16798987]
[1610264157485,1.8701,1321.3,1320.9,4.17023907]
[1610264158591,4.00959,1321.0,1320.9,4.17023907]
[1610264158791,34.00959,1321.0,1320.8,4.18027113]
[1610264158991,36.39269,1321.0,1320.8,4.18027113]
[1610264159794,6.39269,1321.0,1320.8,4.18027113]
[1610264160194,36.39269,1321.0,1320.8,4.18027113]
[1610264160795,36.39269,1321.0,1320.9,4.1803905]
[1610264161196,6.39269,1321.0,1320.9,4.1803905]
[1610264163896,6.39269,1321.0,1320.1,4.64481548]
[1610264166198,6.39269,1321.0,1320.3,4.64445281]
[1610264169101,2.3831,1321.0,1320.3,4.64445281]
[1610264169300,1.8701,1321.3,1320.3,4.64445281]
[1610264169699,30.0,1321.9,1320.7,4.64329339]
[1610264169900,30.0,1321.9,1321.5,4.17886688]
[1610264170301,30.0,1321.9,1321.6,4.17876784]
[1610264170701,28.3423,1321.9,1321.7,4.1787064]
[1610264171204,25.0001,1322.3,1321.7,4.1787064]
[1610264171801,25.0001,1322.3,1321.8,4.17812268]
[1610264172302,25.0001,1322.3,1320.7,4.64329339]
[1610264172303,25.0001,1322.3,1321.7,4.17835284]
[1610264172604,26.8937,1322.3,1321.6,4.1784011]
[1610264172803,4.00959,1321.8,1321.6,4.1784011]
[1610264173003,4.00959,1321.8,1321.5,4.1786809]
[1610264173203,30.83739,1321.8,1321.5,4.1786809]
[1610264173404,30.83739,1321.8,1321.4,4.17884192]
[1610264174105,25.0001,1321.7,1321.4,4.17884192]
[1610264174304,25.0001,1321.7,1320.2,2.4038]
[1610264174305,25.0001,1321.7,1321.3,4.17907028]
[1610264174706,4.00959,1321.4,1321.3,4.17907028]
[1610264175007,5.64149,1321.4,1321.3,4.17907028]
[1610264176677,5.64149,1321.4,1320.5,4.64341142]
[1610264177610,5.64149,1321.4,1320.6,4.6434559]
[1610264177913,5.64149,1321.4,1321.3,4.17921886]
[1610264183918,5.64149,1321.4,1321.2,4.17943514]
[1610264184221,30.64159,1321.4,1321.2,4.17943514]
[1610264184920,30.64159,1321.4,1321.1,4.17964709]
[1610264185319,5.64149,1321.4,1321.1,4.17964709]
[1610264185622,5.64149,1321.4,1321.2,4.17959428]
[1610264187323,5.64149,1321.4,1321.1,4.17964516]
[1610264188125,30.64159,1321.4,1321.1,4.17964516]
[1610264188824,4.00959,1321.2,1321.1,4.17964516]
[1610264189528,4.00959,1321.2,1321.0,4.17988542]
[1610264190526,4.00959,1321.2,1321.1,4.1797709]
[1610264193430,4.00959,1321.2,1321.0,4.17999866]
[1610264193832,4.00959,1321.2,1320.9,4.18025848]
[1610264194831,4.00959,1321.0,1320.9,4.18025848]
[1610264195231,5.90359,1321.0,1320.9,4.18025848]
[1610264196431,5.90359,1321.0,1320.1,4.64473164]
[1610264197131,5.90359,1321.0,1320.3,4.64439727]
[1610264200836,4.00959,1320.7,1320.3,4.64439727]
[1610264201037,6.17579,1320.7,1320.3,4.64439727]
[1610264204037,6.17579,1320.7,1320.2,4.64458083]
[1610264204940,4.00959,1320.4,1320.2,4.64458083]
[1610264206443,2.1662,1320.7,1320.2,4.64458083]
[1610264206644,1.894,1321.0,1320.2,4.64458083]
[1610264206842,4.00959,1320.7,1320.2,4.64458083]
[1610264207243,5.69229,1320.7,1320.2,4.64458083]
[1610264218255,1.6827,1320.7,1320.2,4.64458083]
[1610264218455,1.894,1321.0,1320.2,4.64458083]
[1610264218656,1.6319,1321.4,1320.2,4.64458083]
[1610264219056,5.83729,1321.8,1320.7,5.0]
[1610264219457,5.83729,1321.8,1321.7,4.17850254]
[1610264219856,5.83729,1321.8,1320.7,5.0]
[1610264220458,5.83729,1321.8,1321.0,4.64239313]
[1610264221759,5.83729,1321.8,1321.7,4.17844574]
[1610264223461,5.83729,1321.8,1321.6,4.17859083]
[1610264223660,35.83729,1321.8,1321.6,4.17859083]
[1610264223860,35.83729,1321.8,1321.5,4.17864857]
[1610264224062,35.83729,1321.8,1321.4,4.17895495]
[1610264225062,4.00959,1321.5,1321.4,4.17895495]
[1610264225368,4.00959,1321.5,1321.3,4.17919715]
[1610264225567,5.79519,1321.5,1321.3,4.17919715]
[1610264225967,35.79519,1321.5,1321.3,4.17919715]
[1610264226367,35.79519,1321.5,1321.2,4.17956356]
[1610264227066,4.00959,1321.3,1321.2,4.17956356]
[1610264227767,4.00959,1321.3,1321.1,4.17966036]
[1610264228369,4.00959,1321.3,1321.2,4.17973774]
[1610264228568,31.7856,1321.5,1321.3,0.99041]
[1610264229068,4.00959,1321.4,1321.3,0.99041]
[1610264230871,4.00959,1321.4,1321.3,5.16983405]
[1610264233070,4.00959,1321.4,1321.3,9.17942405]
[1610264233372,4.00959,1321.4,1321.3,5.16983405]
[1610264234270,4.00959,1321.4,1321.3,0.99041]
[1610264235170,4.00959,1321.4,1321.3,5.0]
[1610264236773,1.7856,1321.5,1321.3,5.0]
[1610264236974,1.8277,1321.8,1321.3,5.0]
[1610264237174,4.00959,1321.7,1321.5,4.00959]
[1610264237576,4.00959,1321.7,1321.6,4.17849337]
[1610264238173,4.00959,1321.7,1321.5,4.00959]
[1610264238575,4.00959,1321.7,1321.6,4.17846535]
[1610264240075,55.7011,1322.6,1321.6,4.17846535]
[1610264240275,55.7011,1322.6,1321.7,4.17828865]
[1610264240575,55.7011,1322.6,1321.8,4.17798921]
[1610264241176,55.7011,1322.6,1322.0,4.00959]
[1610264243179,4.00959,1322.1,1322.0,4.00959]
[1610264243579,5.56619,1322.1,1322.0,4.00959]
[1610264246585,5.56619,1322.1,1321.9,4.17775921]
[1610264247184,5.56619,1322.1,1321.8,8.18766235]
[1610264248987,5.56619,1322.1,1321.9,4.17790049]
[1610264250091,5.56619,1322.1,1321.8,4.17800163]
[1610264250388,35.56619,1322.1,1321.8,4.17800163]
[1610264250688,35.56619,1322.1,1321.7,4.17817783]
[1610264251090,35.56619,1322.1,1321.6,4.17833418]
[1610264251289,4.00959,1321.7,1321.6,4.17833418]
[1610264251590,6.40639,1321.7,1321.6,4.17833418]
[1610264255695,6.40639,1321.7,1321.5,4.17857508]
[1610264257394,6.40639,1321.7,1321.6,4.17837533]
[1610264258396,6.40639,1321.7,1321.4,4.00959]
[1610264259196,2.3968,1321.7,1321.6,4.00959]
[1610264259396,2.0528,1321.7,1321.6,4.00959]
[1610264264905,4.00959,1321.9,1321.6,4.00959]
[1610264265304,4.00959,1321.9,1321.8,4.00959]
[1610264265603,4.00959,1321.9,1321.8,8.18760411]
[1610264266104,4.00959,1321.9,1321.8,4.00959]
[1610264266306,4.00959,1321.9,1321.7,4.17801636]
[1610264266804,4.00959,1321.9,1321.6,4.17821554]
[1610264267303,4.00959,1321.7,1321.6,4.17821554]
[1610264267606,6.37169,1321.7,1321.6,4.17821554]
[1610264267804,6.37169,1321.7,1321.5,4.17840345]
[1610264269306,6.37169,1321.7,1321.5,8.18799345]
[1610264269706,6.37169,1321.7,1321.6,4.17842889]
[1610264271410,2.3621,1321.7,1321.6,4.17842889]
[1610264271810,2.3621,1321.7,1321.5,4.00959]
[1610264272712,1.5566,1322.1,1321.5,4.00959]
[1610264272911,51.7844,1322.5,1321.5,4.00959]
[1610264273310,51.7844,1322.5,1321.3,0.99041]
[1610264273311,51.7844,1322.5,1322.2,4.00959]
[1610264274013,51.7844,1322.5,1322.2,8.1863557]
[1610264275413,4.00959,1322.3,1322.2,8.1863557]
[1610264275815,5.84979,1322.3,1322.2,8.1863557]
[1610264277719,5.84979,1322.3,1322.2,4.00959]
[1610264280622,5.84979,1322.3,1322.2,8.1863662]
[1610264287735,5.84979,1322.3,1322.2,4.00959]
[1610264291541,1.8402,1322.3,1322.2,4.00959]
[1610264291941,2.4202,1322.4,1322.2,4.00959]
[1610264292443,2.4202,1322.4,1322.3,4.17638343]
[1610264292742,2.4202,1322.4,1322.2,4.00959]
[1610264297047,21.98574934,1323.1,1322.2,4.00959]
[1610264297246,2.0037,1322.6,1322.2,4.00959]
[1610264297446,2.0037,1322.6,1322.5,4.00959]
[1610264299452,21.98574934,1323.1,1322.5,4.00959]
[1610264301354,21.98574934,1323.1,1323.0,4.00959]
[1610264302856,21.98574934,1323.1,1322.4,1.5318]
[1610264303056,21.98574934,1323.1,1323.0,4.17472234]
[1610264303360,25.99533934,1323.1,1323.0,8.18431234]
[1610264303760,25.99533934,1323.1,1323.0,4.00959]
[1610264303961,21.98574934,1323.1,1323.0,4.00959]
[1610264304157,21.98574934,1323.1,1323.0,8.18437481]
[1610264306359,21.98574934,1323.1,1323.0,4.00959]
[1610264330387,21.98574934,1323.1,1323.0,8.62914544]
[1610264334988,21.98574934,1323.1,1323.0,4.00959]
[1610264338495,21.98574934,1323.1,1323.0,8.62857763]
[1610264345104,21.98574934,1323.1,1323.0,4.00959]
[1610264357426,21.98574934,1323.1,1323.0,8.64482162]
[1610264359431,21.98574934,1323.1,1323.0,4.00959]
[1610264372446,21.98574934,1323.1,1323.0,8.64494456]
[1610264375857,21.98574934,1323.1,1323.0,4.00959]
[1610264382061,21.98574934,1323.1,1323.0,8.64507613]
[1610264382861,21.98574934,1323.1,1323.0,4.00959]
[1610264399181,21.98574934,1323.1,1323.0,8.64515529]
[1610264400983,21.98574934,1323.1,1323.0,4.00959]
[1610264401984,25.99533934,1323.1,1323.0,4.00959]
[1610264404189,21.98574934,1323.1,1323.0,4.00959]
[1610264409794,21.98574934,1323.1,1323.0,8.64488958]
[1610264413393,21.98574934,1323.1,1323.0,4.00959]
[1610264419903,21.98574934,1323.1,1323.0,8.64462448]
[1610264422604,21.98574934,1323.1,1323.0,4.00959]
[1610264431815,21.98574934,1323.1,1323.0,34.00959]
[1610264436318,21.98574934,1323.1,1323.0,4.00959]
[1610264437418,21.98574934,1323.1,1323.0,34.00959]
[1610264442224,12.91834934,1323.1,1323.0,34.00959]
[1610264449029,12.91834934,1323.1,1323.0,4.00959]
[1610264450631,12.91834934,1323.1,1323.0,34.00959]
[1610264451531,12.91834934,1323.1,1323.0,4.00959]
[1610264452439,12.91834934,1323.1,1323.0,34.00959]
[1610264459646,1.01344934,1323.1,1323.0,34.00959]
[1610264466053,1.01344934,1323.1,1323.0,4.00959]
[1610264466451,1.01344934,1323.1,1323.0,9.54462213]
[1610264467250,1.01344934,1323.1,1323.0,4.00959]
[1610264477757,1.01344934,1323.1,1323.0,9.559003]
[1610264482863,1.01344934,1323.1,1323.0,4.00959]
[1610264497379,1.01344934,1323.1,1323.0,34.00959]
[1610264499986,1.01344934,1323.1,1323.0,4.00959]
[1610264500387,1.01344934,1323.1,1323.0,34.00959]
[1610264504490,1.01344934,1323.1,1323.0,4.00959]
[1610264504689,1.01344934,1323.1,1323.0,9.56843843]
[1610264507192,1.01344934,1323.1,1323.0,39.56843843]
[1610264509796,1.01344934,1323.1,1323.0,34.00959]
[1610264514498,1.01344934,1323.1,1323.0,4.00959]
[1610264516401,1.01344934,1323.1,1323.0,9.56450856]
[1610264517202,1.01344934,1323.1,1323.0,39.56450856]
[1610264521306,1.01344934,1323.1,1323.0,34.00959]
[1610264540629,1.01344934,1323.1,1323.0,4.00959]
[1610264541830,1.01344934,1323.1,1323.0,34.00959]
[1610264542934,1.01344934,1323.1,1323.0,9.5677646]
[1610264544433,1.01344934,1323.1,1323.0,39.5677646]
[1610264547936,1.01344934,1323.1,1323.0,9.5677646]
[1610264548134,1.01344934,1323.1,1323.0,4.00959]
[1610264548835,1.01344934,1323.1,1323.0,34.00959]
[1610264629727,2.1472,1325.4,1323.0,34.00959]
[1610264629927,2.1472,1325.4,1323.0,37.41459]
[1610264630126,2.1472,1325.4,1324.7,4.57823441]
[1610264630326,2.1472,1325.4,1324.7,34.57823441]
[1610264630828,2.1472,1325.4,1325.3,4.00959]
[1610264631229,4.00959,1326.3,1325.3,4.00959]
[1610264631732,4.00959,1326.3,1325.6,4.11551863]
[1610264632131,4.00959,1326.3,1325.7,4.11557643]
[1610264632934,56.8497,1326.6,1326.1,4.00959]
[1610264633434,56.8497,1326.6,1326.3,3.65892748]
[1610264634033,56.8497,1326.6,1326.4,3.66035753]
[1610264634632,30.0,1327.9,1326.4,3.66035753]